fUSD/lending_fUSD_20260405
["ID","MTS","AMOUNT","RATE_DAILY","PERIOD"]
[419788966,1775380252569,-150.0,0.00014836,2]
[419788967,1775380252579,-150.0,0.00014839,2]
[419788968,1775380252588,-150.0,0.00014842,2]
[419788969,1775380252598,-150.0,0.00014844,2]
[419788970,1775380252608,-150.0,0.00014848,2]
[419788971,1775380252617,-150.0,0.00014849,2]
[419788972,1775380252627,-150.0,0.00014863,2]
[419788973,1775380252637,-150.0,0.00014865,2]
[419788974,1775380252647,-150.0,0.00014865,2]
[419788975,1775380252658,-150.0,0.00014865,2]
[419788976,1775380252667,-150.0,0.00014867,2]
[419788977,1775380252676,-172.74,0.00014874,2]
[419788978,1775380252686,-150.0,0.0001488,2]
[419788979,1775380252696,-150.0,0.0001488,2]
[419788980,1775380252705,-150.0,0.00014884,2]
[419788981,1775380252715,-150.0,0.00014885,2]
[419788982,1775380252724,-150.0,0.00014887,2]
[419788983,1775380252734,-150.0,0.0001489,2]
[419788984,1775380252743,-150.0,0.00014895,2]
[419788985,1775380252752,-150.0,0.00014895,2]
[419788986,1775380252762,-150.0,0.00014903,2]
[419788987,1775380252773,-3000.0,0.00014904,2]
[419788988,1775380252783,-172.74,0.00014905,2]
[419788989,1775380252795,-1000.0,0.00014905,2]
[419788990,1775380252807,-1000.0,0.00014905,2]
[419788991,1775380252818,-150.0,0.00014905,2]
[419788992,1775380252829,-289.56339563,0.00014908,2]
[419788993,1775380252839,-150.0,0.00014912,2]
[419788994,1775380252848,-150.0,0.00014916,2]
[419788995,1775380252858,-167.16,0.00014917,2]
[419788996,1775380252867,-150.0,0.00014921,2]
[419788997,1775380252877,-150.0,0.00014924,2]
[419788998,1775380252886,-150.0,0.00014924,2]
[419788999,1775380252896,-150.0,0.00014926,2]
[419789000,1775380252905,-150.0,0.00014933,2]
[419789001,1775380252915,-150.0,0.00014933,2]
[419789002,1775380252926,-150.0,0.00014933,2]
[419789003,1775380252936,-150.0,0.00014933,2]
[419789004,1775380252946,-150.0,0.00014939,2]
[419789005,1775380252956,-150.0,0.00014942,2]
[419789006,1775380252966,-150.0,0.00014944,2]
[419789007,1775380252976,-150.0,0.00014947,2]
[419789008,1775380252986,-1605.51,0.00014949,2]
[419789009,1775380252996,-765.0,0.00014949,2]
[419789010,1775380253006,-1289.11,0.00014949,2]
[419789011,1775380253015,-1000.0,0.0001495,2]
[419789012,1775380253025,-150.0,0.00014953,2]
[419789013,1775380253034,-150.0,0.00014953,2]
[419789014,1775380253044,-150.0,0.00014957,2]
[419789015,1775380253054,-150.0,0.00014957,2]
[419789016,1775380253063,-150.0,0.00014968,2]
[419789017,1775380253072,-150.0,0.00014968,2]
[419789018,1775380253082,-181.87,0.00014973,2]
[419789019,1775380253091,-150.0,0.00014975,2]
[419789020,1775380253101,-150.0,0.00014976,2]
[419789021,1775380253110,-150.0,0.00014982,2]
[419789022,1775380253120,-150.0,0.00014982,2]
[419789023,1775380253130,-150.0,0.00014987,2]
[419789024,1775380253140,-871.95012592,0.00014989,2]
[419789025,1775380253150,-150.0,0.00014989,2]
[419789026,1775380253161,-150.0,0.00014993,2]
[419789027,1775380253172,-150.0,0.00014994,2]
[419789028,1775380253183,-300.0,0.00015,2]
[419789029,1775380253192,-2067.27601646,0.00015,2]
[419789030,1775380253202,-8047.93487487,0.00015,2]
[419789031,1775380253212,-223458.98806615,0.00015,7]
[419789032,1775380253221,-500.0,0.00015007,2]
[419789033,1775380253231,-731.57,0.00015007,2]
[419789034,1775380253241,-1135.9,0.00015007,2]
[419789035,1775380253251,-674.6,0.00015007,2]
[419789036,1775380253260,-500.0,0.00015007,2]
[419789037,1775380253270,-150.0,0.00015008,2]
[419789038,1775380253281,-150.0,0.00015011,2]
[419789039,1775380253291,-150.0,0.00015011,2]
[419789040,1775380253301,-150.0,0.00015011,2]
[419789041,1775380253311,-150.0,0.00015011,2]
[419789042,1775380253321,-500.0,0.00015015,2]
[419789043,1775380253331,-2000.0,0.00015015,2]
[419789044,1775380253341,-150.0,0.00015019,2]
[419789045,1775380253351,-150.0,0.00015022,2]
[419789046,1775380253361,-8422.99193755,0.00015026,2]
[419789047,1775380253372,-150.0,0.00015026,2]
[419789048,1775380253381,-433.16765094,0.00015027,2]
[419789049,1775380253391,-150.0,0.00015029,2]
[419789050,1775380253401,-150.0,0.00015032,2]
[419789051,1775380253412,-2000.0,0.00015033,2]
[419789052,1775380253423,-217.0,0.00015033,2]
[419789053,1775380253433,-273.0,0.00015033,2]
[419789054,1775380253445,-200.0,0.00015033,2]
[419789055,1775380253455,-150.0,0.00015033,2]
[419789056,1775380253466,-250.0,0.00015033,2]
[419789057,1775380253477,-224.902,0.00015033,2]
[419789058,1775380253488,-238.347,0.00015033,2]
[419789059,1775380253500,-250.0,0.00015033,2]
[419789060,1775380253510,-162.919,0.00015033,2]
[419789061,1775380253521,-250.0,0.00015033,2]
[419789062,1775380253532,-500.0,0.00015034,2]
[419789063,1775380253543,-150.0,0.0001504,2]
[419789064,1775380253553,-150.0,0.0001504,2]
[419789065,1775380253563,-150.0,0.0001504,2]
[419789066,1775380253574,-150.0,0.0001504,2]
[419789067,1775380253586,-150.0,0.00015045,2]
[419789068,1775380253596,-150.0,0.00015047,2]
[419789069,1775380253605,-150.0,0.00015053,2]
[419789070,1775380253615,-180.00096908,0.00015056,2]
[419789071,1775380253626,-1000.0,0.0001506,2]
[419789072,1775380253636,-500.0,0.00015065,2]
[419789073,1775380253646,-150.0,0.00015065,2]
[419789074,1775380253658,-5957.33,0.00015068,2]
[419789075,1775380253667,-150.0,0.00015069,2]
[419789076,1775380253677,-150.0,0.00015069,2]
[419789077,1775380253687,-150.0,0.00015071,2]
[419789078,1775380253697,-150.0,0.00015072,2]
[419789079,1775380253706,-150.0,0.00015074,2]
[419789080,1775380253716,-5888.0,0.0001508,2]
[419789081,1775380253726,-150.0,0.00015083,2]
[419789082,1775380253736,-150.0,0.00015093,2]
[419789083,1775380253746,-150.0,0.00015095,2]
[419789084,1775380253755,-150.0,0.00015096,2]
[419789085,1775380253765,-150.0,0.00015097,2]
[419789086,1775380253775,-150.0,0.00015098,2]
[419789087,1775380253784,-150.0,0.00015098,2]
[419789088,1775380253794,-160.45,0.000151,2]
[419789089,1775380253804,-150.0,0.00015101,2]
[419789090,1775380253814,-150.0,0.00015104,2]
[419789091,1775380253824,-150.0,0.00015111,2]
[419789092,1775380253834,-150.0,0.00015116,2]
[419789093,1775380253843,-150.0,0.00015119,2]
[419789094,1775380253853,-1096.9382622,0.0001512,2]
[419789095,1775380253863,-150.0,0.00015123,2]
[419789096,1775380253873,-150.0,0.00015127,2]
[419789097,1775380253883,-150.0,0.00015127,2]
[419789098,1775380253894,-150.0,0.00015136,2]
[419789099,1775380253904,-150.0,0.00015137,2]
[419789100,1775380253914,-150.0,0.00015137,2]
[419789101,1775380253925,-150.0,0.00015147,2]
[419789102,1775380253935,-150.0,0.00015148,2]
[419789103,1775380253946,-1592.87721993,0.00015155,2]
[419789104,1775380253956,-200.0,0.00015155,2]
[419789105,1775380253966,-829.12830338,0.00015155,2]
[419789106,1775380254243,-194.72792766,0.00015155,2]
[419789107,1775380254253,-200.0,0.00015155,2]
[419789108,1775380254263,-369.5568607,0.00015155,2]
[419789109,1775380254273,-150.0,0.00015155,2]
[419789110,1775380254283,-150.0,0.00015156,2]
[419789111,1775380254292,-150.0,0.00015156,2]
[419789112,1775380254302,-1000.0,0.00015157,2]
[419789113,1775380254311,-150.0,0.00015158,2]
[419789114,1775380254321,-150.0,0.00015165,2]
[419789115,1775380254331,-150.0,0.00015168,2]
[419789116,1775380254341,-150.0,0.00015173,2]
[419789117,1775380254350,-150.0,0.00015174,2]
[419789118,1775380254360,-1800.0,0.00015178,2]
[419789119,1775380254370,-150.0,0.00015179,2]
[419789120,1775380254380,-150.0,0.00015185,2]
[419789121,1775380254390,-150.0,0.00015185,2]
[419789122,1775380254400,-150.0,0.00015191,2]
[419789123,1775380254410,-989.7,0.00015199,2]
[419789124,1775380254419,-1289.0,0.00015199,2]
[419789125,1775380254429,-889.96,0.00015199,2]
[419789126,1775380254438,-322.47111,0.000152,2]
[419789127,1775380254448,-7151.76505981,0.000152,2]
[419789128,1775380254458,-5000.0,0.000152,2]
[419789129,1775380254468,-5000.0,0.000152,2]
[419789130,1775380254477,-5000.0,0.000152,2]
[419789131,1775380254486,-150.0,0.000152,2]
[419789132,1775380254497,-150.0,0.000152,2]
[419789133,1775380254507,-150.0,0.000152,2]
[419789134,1775380254516,-150.0,0.000152,2]
[419789135,1775380254526,-150.0,0.000152,2]
[419789136,1775380254535,-150.0,0.000152,2]
[419789137,1775380254545,-150.0,0.000152,2]
[419789138,1775380254555,-150.0,0.000152,2]
[419789139,1775380254565,-150.0,0.000152,2]
[419789140,1775380254574,-178.0,0.000152,2]
[419789141,1775380254584,-1048.98200346,0.00015205,2]
[419789142,1775380254593,-10000.0,0.00015205,2]
[419789143,1775380254603,-150.0,0.00015209,2]
[419789144,1775380254612,-150.0,0.00015215,2]
[419789145,1775380254621,-150.0,0.00015215,2]
[419789146,1775380254631,-150.0,0.00015221,2]
[419789147,1775380254640,-150.0,0.00015226,2]
[419789148,1775380254650,-150.0,0.00015227,2]
[419789149,1775380254659,-150.0,0.00015232,2]
[419789150,1775380254669,-150.0,0.00015235,2]
[419789151,1775380254679,-150.0,0.00015242,2]
[419789152,1775380254689,-150.0,0.00015244,2]
[419789153,1775380254700,-150.0,0.00015244,2]
[419789154,1775380254710,-150.0,0.00015245,2]
[419789155,1775380254721,-1000.0,0.00015249,2]
[419789156,1775380254732,-150.0,0.00015252,2]
[419789157,1775380254743,-150.0,0.00015253,2]
[419789158,1775380254753,-1048.98200346,0.0001526,2]
[419789159,1775380254763,-150.0,0.00015263,2]
[419789160,1775380254774,-150.0,0.00015263,2]
[419789161,1775380254784,-150.0,0.00015264,2]
[419789162,1775380254795,-350.0,0.00015264,2]
[419789163,1775380254806,-150.0,0.00015273,2]
[419789164,1775380254816,-150.0,0.00015273,2]
[419789165,1775380254826,-150.0,0.00015277,2]
[419789166,1775380254838,-150.0,0.00015281,2]
[419789167,1775380254850,-150.0,0.00015284,2]
[419789168,1775380254860,-485.0,0.00015285,2]
[419789169,1775380254871,-150.0,0.00015289,2]
[419789170,1775380254882,-150.0,0.00015296,2]
[419789171,1775380254892,-150.0,0.00015299,2]
[419789172,1775380254903,-1517.64,0.000153,2]
[419789173,1775380254913,-150.0,0.00015302,2]
[419789174,1775380254925,-150.0,0.00015302,2]
[419789175,1775380254935,-150.0,0.00015303,2]
[419789176,1775380254946,-155.80569417,0.00015304,2]
[419789177,1775380254955,-150.0,0.00015304,2]
[419789178,1775380254964,-150.0,0.00015305,2]
[419789179,1775380254974,-150.0,0.00015307,2]
[419789180,1775380254986,-1048.98200346,0.00015315,2]
[419789181,1775380254996,-150.0,0.00015317,2]
[419789182,1775380255006,-150.0,0.00015326,2]
[419789183,1775380255016,-150.0,0.00015326,2]
[419789184,1775380255028,-150.0,0.00015328,2]
[419789185,1775380255037,-150.0,0.00015329,2]
[419789186,1775380255047,-150.0,0.00015331,2]
[419789187,1775380255057,-150.0,0.00015331,2]
[419789188,1775380255066,-150.0,0.00015335,2]
[419789189,1775380255076,-345.01542083,0.00015339,2]
[419789190,1775380255087,-2000.0,0.00015342,2]
[419789191,1775380255096,-2000.0,0.00015342,2]
[419789192,1775380255106,-500.0,0.00015342,2]
[419789193,1775380255116,-1189.37318328,0.00015342,2]
[419789194,1775380255126,-2000.0,0.00015342,2]
[419789195,1775380255135,-762.51968471,0.00015342,2]
[419789196,1775380255145,-2000.0,0.00015342,2]
[419789197,1775380255154,-500.0,0.00015342,2]
[419789198,1775380255163,-2000.0,0.00015342,2]
[419789199,1775380255173,-506.60866792,0.00015342,2]
[419789200,1775380255182,-932.23819105,0.00015342,2]
[419789201,1775380255191,-2000.0,0.00015342,2]
[419789202,1775380255201,-2000.0,0.00015342,2]
[419789203,1775380255212,-1500.0,0.00015342,2]
[419789204,1775380255222,-1143.48326881,0.00015342,2]
[419789205,1775380255232,-347.07116371,0.00015342,2]
[419789206,1775380255241,-1253.85680119,0.00015342,2]
[419789207,1775380255251,-2000.0,0.00015342,2]
[419789208,1775380255260,-2000.0,0.00015342,2]
[419789209,1775380255269,-2000.0,0.00015342,2]
[419789210,1775380255279,-1500.0,0.00015342,2]
[419789211,1775380255288,-415.42400348,0.00015342,2]
[419789212,1775380255298,-1000.0,0.00015342,2]
[419789213,1775380255307,-2000.0,0.00015342,2]
[419789214,1775380255316,-2000.0,0.00015342,2]
[419789215,1775380255326,-2000.0,0.00015342,2]
[419789216,1775380255336,-150.0,0.00015347,2]
[419789217,1775380255346,-150.0,0.00015353,2]
[419789218,1775380255357,-39608.9787347,0.00015353,2]
[419789219,1775380255367,-150.0,0.00015355,2]
[419789220,1775380255376,-243.30922088,0.00015356,2]
[419789221,1775380255386,-150.0,0.0001536,2]
[419789222,1775380255395,-150.0,0.0001536,2]
[419789223,1775380255407,-150.0,0.0001536,2]
[419789224,1775380255416,-150.0,0.0001536,2]
[419789225,1775380255426,-150.0,0.00015368,2]
[419789226,1775380255437,-1048.98200346,0.0001537,2]
[419789227,1775380255447,-150.0,0.00015371,2]
[419789228,1775380255458,-150.0,0.00015374,2]
[419789229,1775380255468,-150.0,0.00015378,2]
[419789230,1775380255478,-150.0,0.00015381,2]
[419789231,1775380255488,-1000.0,0.00015383,2]
[419789232,1775380255498,-150.0,0.00015389,2]
[419789233,1775380255507,-150.0,0.00015389,2]
[419789234,1775380255516,-150.0,0.00015389,2]
[419789235,1775380255526,-150.0,0.00015389,2]
[419789236,1775380255535,-150.0,0.00015392,2]
[419789237,1775380255545,-512.60947705,0.000154,2]
[419789238,1775380255556,-150.0,0.00015406,2]
[419789239,1775380255565,-150.0,0.00015407,2]
[419789240,1775380255574,-150.0,0.00015411,2]
[419789241,1775380255583,-150.0,0.00015413,2]
[419789242,1775380255592,-167.16,0.00015414,2]
[419789243,1775380255602,-150.0,0.00015418,2]
[419789244,1775380255611,-150.0,0.00015418,2]
[419789245,1775380255620,-150.0,0.00015424,2]
[419789246,1775380255630,-150.0,0.00015425,2]
[419789247,1775380255640,-150.0,0.00015432,2]
[419789248,1775380255649,-150.0,0.00015432,2]
[419789249,1775380255659,-150.0,0.00015443,2]
[419789250,1775380255668,-150.0,0.00015443,2]
[419789251,1775380255678,-150.0,0.00015447,2]
[419789252,1775380255687,-150.0,0.00015447,2]
[419789253,1775380255696,-1048.98200346,0.00015452,2]
[419789254,1775380255705,-150.0,0.00015453,2]
[419789255,1775380255715,-1500.0,0.00015453,2]
[419789256,1775380255724,-1500.0,0.00015453,2]
[419789257,1775380255733,-150.0,0.00015456,2]
[419789258,1775380255743,-150.0,0.00015458,2]
[419789259,1775380255752,-150.0,0.00015461,2]
[419789260,1775380255761,-150.0,0.00015467,2]
[419789261,1775380255771,-150.0,0.00015467,2]
[419789262,1775380255780,-150.0,0.00015467,2]
[419789263,1775380255789,-150.0,0.00015467,2]
[419789264,1775380255798,-150.0,0.00015474,2]
[419789265,1775380255807,-150.0,0.00015476,2]
[419789266,1775380255817,-150.0,0.00015476,2]
[419789267,1775380255826,-150.0,0.00015479,2]
[419789268,1775380255835,-150.0,0.00015484,2]
[419789269,1775380255845,-150.0,0.00015488,2]
[419789270,1775380255854,-150.0,0.00015495,2]
[419789271,1775380255864,-150.0,0.00015497,2]
[419789272,1775380255873,-167.9673,0.000155,2]
[419789273,1775380255882,-1661.34286454,0.000155,3]
[419789274,1775380255891,-5643.7200837,0.000155,3]
[419789275,1775380255901,-1231.52674065,0.000155,2]
[419789276,1775380255910,-150.0,0.00015505,2]
[419789277,1775380255919,-150.0,0.00015505,2]
[419789278,1775380255928,-1048.98200346,0.00015507,2]
[419789279,1775380255938,-150.0,0.0001551,2]
[419789280,1775380255947,-150.0,0.00015513,2]
[419789281,1775380255956,-150.0,0.00015515,2]
[419789282,1775380255965,-150.0,0.00015516,2]
[419789283,1775380255975,-150.0,0.0001552,2]
[419789284,1775380255984,-150.0,0.0001552,2]
[419789285,1775380255993,-150.0,0.00015533,2]
[419789286,1775380256002,-150.0,0.00015535,2]
[419789287,1775380256011,-150.0,0.00015535,2]
[419789288,1775380256020,-150.0,0.00015535,2]
[419789289,1775380256030,-150.0,0.00015537,2]
[419789290,1775380256039,-150.0,0.00015551,2]
[419789291,1775380256048,-150.0,0.00015552,2]
[419789292,1775380256058,-150.0,0.00015556,2]
[419789293,1775380256067,-150.0,0.00015558,2]
[419789294,1775380256076,-150.0,0.00015561,2]
[419789295,1775380256085,-1048.98200346,0.00015562,2]
[419789296,1775380256095,-150.0,0.00015563,2]
[419789297,1775380256104,-150.0,0.00015564,2]
[419789298,1775380256113,-150.0,0.00015564,2]
[419789299,1775380256123,-150.0,0.00015569,2]
[419789300,1775380256132,-150.0,0.00015573,2]
[419789301,1775380256142,-150.0,0.00015579,2]
[419789302,1775380256151,-150.0,0.00015583,2]
[419789303,1775380256160,-150.0,0.00015584,2]
[419789304,1775380256169,-150.0,0.00015587,2]
[419789305,1775380256179,-150.0,0.00015587,2]
[419789306,1775380256188,-150.0,0.00015593,2]
[419789307,1775380256198,-150.0,0.00015593,2]
[419789308,1775380256207,-167.9673,0.000156,2]
[419789309,1775380256216,-150.0,0.000156,2]
[419789310,1775380256225,-1000.0,0.000156,2]
[419789311,1775380256234,-150.0,0.000156,2]
[419789312,1775380256243,-300.0,0.000156,5]
[419789313,1775380256252,-1000.0,0.00015602,2]
[419789314,1775380256262,-150.0,0.00015604,2]
[419789315,1775380256272,-485.0,0.00015606,2]
[419789316,1775380256281,-150.0,0.00015613,2]
[419789317,1775380256291,-150.0,0.00015616,2]
[419789318,1775380256300,-1048.98200346,0.00015616,2]
[419789319,1775380256310,-150.0,0.00015621,2]
[419789320,1775380256319,-150.0,0.00015622,2]
[419789321,1775380256328,-150.0,0.00015622,2]
[419789322,1775380256338,-150.0,0.00015622,2]
[419789323,1775380256347,-150.0,0.00015627,2]
[419789324,1775380256357,-350.0,0.00015629,2]
[419789325,1775380256366,-733.77686062,0.00015634,2]
[419789326,1775380256376,-150.0,0.00015639,2]
[419789327,1775380256386,-1000.0,0.00015639,2]
[419789328,1775380256395,-150.0,0.0001564,2]
[419789329,1775380256404,-150.0,0.00015642,2]
[419789330,1775380256414,-150.0,0.00015644,2]
[419789331,1775380256423,-150.0,0.00015648,2]
[419789332,1775380256432,-150.0,0.00015651,2]
[419789333,1775380256442,-150.0,0.00015651,2]
[419789334,1775380256451,-150.0,0.00015652,2]
[419789335,1775380256460,-150.0,0.00015658,2]
[419789336,1775380256469,-5888.0,0.00015661,2]
[419789337,1775380256478,-150.0,0.00015663,2]
[419789338,1775380256488,-150.0,0.00015665,2]
[419789339,1775380256498,-150.0,0.00015676,2]
[419789340,1775380256508,-2201.46384682,0.0001568,2]
[419789341,1775380256518,-150.0,0.0001568,2]
[419789342,1775380256647,-150.0,0.0001568,2]
[419789343,1775380256658,-150.0,0.0001568,2]
[419789344,1775380256668,-150.0,0.0001568,2]
[419789345,1775380256678,-150.0,0.00015684,2]
[419789346,1775380256689,-485.0,0.00015686,2]
[419789347,1775380256701,-150.0,0.00015686,2]
[419789348,1775380256711,-150.0,0.0001569,2]
[419789349,1775380256720,-150.0,0.00015694,2]
[419789350,1775380256730,-1048.98200346,0.00015699,2]
[419789351,1775380256741,-167.9673,0.000157,2]
[419789352,1775380256750,-167.9673,0.000157,2]
[419789353,1775380256760,-157.0,0.000157,2]
[419789354,1775380256769,-157.0,0.000157,2]
[419789355,1775380256778,-157.0,0.000157,3]
[419789356,1775380256787,-300.0,0.000157,5]
[419789357,1775380256796,-2000.0,0.00015701,2]
[419789358,1775380256805,-1651.81367706,0.00015703,2]
[419789359,1775380256815,-200.0,0.00015703,2]
[419789360,1775380256826,-859.80605061,0.00015703,2]
[419789361,1775380256836,-201.93286099,0.00015703,2]
[419789362,1775380256846,-200.0,0.00015703,2]
[419789363,1775380256855,-150.0,0.00015705,2]
[419789364,1775380256864,-150.0,0.00015709,2]
[419789365,1775380256873,-150.0,0.00015709,2]
[419789366,1775380256882,-150.0,0.00015712,2]
[419789367,1775380256892,-150.0,0.00015712,2]
[419789368,1775380256901,-150.0,0.00015716,2]
[419789369,1775380256910,-150.0,0.00015722,2]
[419789370,1775380256919,-150.0,0.00015726,2]
[419789371,1775380256928,-150.0,0.00015726,2]
[419789372,1775380256936,-150.0,0.0001573,2]
[419789373,1775380256945,-150.0,0.00015733,2]
[419789374,1775380256954,-150.0,0.00015733,2]
[419789375,1775380256963,-150.0,0.00015733,2]
[419789376,1775380256973,-508.0,0.00015734,4]
[419789377,1775380256982,-150.0,0.00015738,2]
[419789378,1775380256992,-150.0,0.00015738,2]
[419789379,1775380257003,-264.0,0.00015741,2]
[419789380,1775380257013,-150.0,0.00015742,2]
[419789381,1775380257022,-150.0,0.00015744,2]
[419789382,1775380257032,-150.0,0.00015747,2]
[419789383,1775380257041,-150.0,0.00015748,2]
[419789384,1775380257050,-264.0,0.00015749,2]
[419789385,1775380257060,-429.0,0.00015753,2]
[419789386,1775380257070,-211.006862,0.00015753,2]
[419789387,1775380257079,-5957.33,0.00015753,2]
[419789388,1775380257089,-1048.98200346,0.00015753,2]
[419789389,1775380257098,-150.0,0.00015765,2]
[419789390,1775380257107,-150.0,0.00015766,2]
[419789391,1775380257116,-193.3229734,0.00015767,2]
[419789392,1775380257125,-150.0,0.00015767,2]
[419789393,1775380257134,-150.0,0.00015767,2]
[419789394,1775380257144,-150.0,0.00015768,2]
[419789395,1775380257153,-440.0,0.00015768,2]
[419789396,1775380257162,-150.0,0.00015768,2]
[419789397,1775380257171,-350.0,0.00015769,2]
[419789398,1775380257181,-350.0,0.00015772,2]
[419789399,1775380257189,-150.0,0.00015776,2]
[419789400,1775380257198,-151.39,0.00015779,2]
[419789401,1775380257207,-151.39,0.00015779,2]
[419789402,1775380257216,-151.39,0.00015779,2]
[419789403,1775380257226,-151.39,0.00015779,2]
[419789404,1775380257235,-150.0,0.00015784,2]
[419789405,1775380257244,-150.0,0.00015787,2]
[419789406,1775380257253,-440.0,0.00015789,2]
[419789407,1775380257263,-150.0,0.00015789,2]
[419789408,1775380257272,-150.0,0.00015791,2]
[419789409,1775380257282,-150.0,0.00015794,2]
[419789410,1775380257291,-150.0,0.00015796,2]
[419789411,1775380257300,-150.0,0.00015796,2]
[419789412,1775380257310,-434.0,0.00015797,2]
[419789413,1775380257319,-167.9673,0.000158,2]
[419789414,1775380257329,-167.9673,0.000158,2]
[419789415,1775380257338,-300.0,0.000158,5]
[419789416,1775380257348,-762.22333244,0.000158,2]
[419789417,1775380257357,-2000.0,0.00015801,2]
[419789418,1775380257367,-150.0,0.00015802,2]
[419789419,1775380257377,-1605.51,0.00015807,2]
[419789420,1775380257387,-765.0,0.00015807,2]
[419789421,1775380257397,-1289.11,0.00015807,2]
[419789422,1775380257406,-150.0,0.00015808,2]
[419789423,1775380257415,-1048.98200346,0.00015808,2]
[419789424,1775380257425,-150.0,0.00015811,2]
[419789425,1775380257434,-150.0,0.00015819,2]
[419789426,1775380257444,-1098.69,0.0001582,2]
[419789427,1775380257453,-879.87,0.0001582,2]
[419789428,1775380257462,-150.0,0.0001582,2]
[419789429,1775380257472,-150.0,0.00015822,2]
[419789430,1775380257481,-278.0,0.00015824,2]
[419789431,1775380257490,-150.0,0.00015825,2]
[419789432,1775380257499,-150.0,0.00015825,2]
[419789433,1775380257509,-150.0,0.00015832,2]
[419789434,1775380257518,-352.0,0.00015833,2]
[419789435,1775380257527,-150.0,0.00015838,2]
[419789436,1775380257536,-989.7,0.00015839,2]
[419789437,1775380257545,-1605.51,0.00015839,2]
[419789438,1775380257554,-1289.0,0.00015839,2]
[419789439,1775380257564,-765.0,0.00015839,2]
[419789440,1775380257573,-1289.11,0.00015839,2]
[419789441,1775380257582,-889.96,0.00015839,2]
[419789442,1775380257591,-500.0,0.00015839,2]
[419789443,1775380257600,-731.57,0.00015839,2]
[419789444,1775380257609,-1135.9,0.00015839,2]
[419789445,1775380257619,-1098.69,0.00015839,2]
[419789446,1775380257628,-674.6,0.00015839,2]
[419789447,1775380257637,-500.0,0.00015839,2]
[419789448,1775380257646,-879.87,0.00015839,2]
[419789449,1775380257655,-97697.2091726,0.0001584,2]
[419789450,1775380257664,-166143.042,0.0001584,2]
[419789451,1775380257674,-150.0,0.0001584,2]
[419789452,1775380257683,-150.0,0.0001584,2]
[419789453,1775380257692,-2000.0,0.0001584,2]
[419789454,1775380257701,-2000.0,0.0001584,2]
[419789455,1775380257710,-150.0,0.00015845,2]
[419789456,1775380257719,-434.0,0.00015848,2]
[419789457,1775380257727,-2000.0,0.0001585,2]
[419789458,1775380257736,-150.0,0.00015853,2]
[419789459,1775380257747,-150.0,0.00015855,2]
[419789460,1775380257756,-150.0,0.00015855,2]
[419789461,1775380257768,-150.0,0.00015856,2]
[419789462,1775380257778,-150.0,0.00015861,2]
[419789463,1775380257787,-1048.98200346,0.00015863,2]
[419789464,1775380257796,-1745.0,0.00015867,5]
[419789465,1775380257806,-150.0,0.00015871,2]